[Event "3rd President Cup-A 2024"]
[Site "Tashkent"]
[Date "2024.11.25"]
[Round "5.1"]
[White "Nigmatov, Ortik"]
[Black "Abdusattorov, Nodirbek"]
[Result "1/2-1/2"]
[ECO "C58"]
[WhiteElo "2447"]
[BlackElo "2777"]
[Annotator "TA"]
[PlyCount "106"]
[EventDate "2024.11.22"]
[EventType "swiss"]
[EventCountry "UZB"]
[SourceTitle "playchess.com"]
[Source "ChessBase"]
[SourceQuality "1"]
[TimeControl "5400+30"]

{[%evp 14,106,37,30,18,37,26,38,83,38,25,8,35,18,24,45,32,33,40,41,29,34,25,38,31,31,31,22,26,32,127,137,131,143,139,146,142,140,150,0,5,18,10,0,0,0,0,0,0,0,0,0,0,0,0,0,0,0,0,0,0,0,0,0,13,0,6,0,0,0,0,0,0,0,0,0,0,0,0,0,0,0,0,0,0,0,0,0,0,0,0,0,0,0,0]} 1. e4 {[%emt 0:00:05]} e5 {[%emt 0:00:23]} 2. Nf3 {[%emt 0:00:13]} Nc6 {[%emt 0:00:11]} 3. Bc4 {[%emt 0:00:11]} Nf6 {[%emt 0:00:07]} 4. Ng5 {[%emt 0:00:40]} d5 {[%emt 0:00:10]} 5. exd5 {[%emt 0:00:06]} Na5 {[%emt 0:00:06]} 6. Bb5+ {[%emt 0:00:07]} c6 {[%emt 0:00:06]} 7. dxc6 {[%emt 0:00:05]} bxc6 {[%emt 0:00:05]} 8. Bd3 {[%emt 0:00:03]} Nd5 {[%emt 0:00:11]} 9. h4 {[%emt 0:00:05][%cal Od1f3]} (9. Nxh7 $2 Nf4 10. Be4 f5 $19) 9... Be7 {[%emt 0:09:21]} 10. Qf3 {[%emt 0:00:21]} (10. Bxh7 Bxg5 11. hxg5 Bf5 $19) (10. Nxh7 $2 g6 11. Nc3 Rxh7 $19) 10... f5 {[%emt 0:00:12] White is slightly better.} 11. Bxf5 {[%emt 0:00:06]} Rf8 $1 {[%emt 0:00:05]} 12. Qh5+ {[%emt 0:00:05]} g6 {[%emt 0:00:03] [#]} 13. Bxg6+ {[%emt 0:00:05]} hxg6 {[%emt 0:00:03]} 14. Qxg6+ {[%emt 0:00:05]} Kd7 {[%emt 0:00:04][%cal Be8d7,Bd7c7,Bc7b7][%mdl 32]} 15. d3 {[%emt 0:00:46]} Kc7 {[%emt 0:03:53]} 16. Bd2 {[%emt 0:00:07]} Kb7 {[%emt 0:01:49]} 17. Qe4 $1 {[%emt 0:00:06]} Rb8 {[%emt 0:06:20]} 18. Qa4 $1 $36 {[%emt 0:00:06][%mdl 2048] White is more active.} Qb6 {[%emt 0:08:02][%csl LRb2,LRf2]} 19. O-O {[%emt 0:00:07]} Ka8 {[%emt 0:02:18]} 20. Bxa5 {[%emt 0:16:11]} (20. Qxa5 Qxb2 21. c4 (21. Nc3 Bb4 $17) 21... Qxa1 $11) 20... Qa6 {[%emt 0:04:25][%cal Ob8b4]} 21. b3 {[%emt 0:08:56]} Nf4 {[%emt 0:08:57] [#]} (21... Rf4 $14 22. Ne4 (22. c4 Rxh4 23. g3 Rh5 $16) 22... Rxh4) 22. Re1 $1 $16 {[%emt 0:17:38]} Bxg5 {[%emt 0:12:43]} 23. hxg5 {[%emt 0:00:40]} Qb7 {[%emt 0:00:15] Against Bc7. And now ...Qh7 would win.} 24. Bd2 {[%emt 0:13:02]} ({But not} 24. Rxe5 $6 Qh7 25. f3 (25. Qxc6+ $2 Bb7 $19) 25... Nxg2 $11) 24... Qh7 {[%emt 0:07:15] [#] ...Rh8 would now be deadly.} 25. Bxf4 $1 {[%emt 0:04:11]} (25. Qxc6+ Bb7 26. Qh6 Qf5 $19) (25. Rxe5 $2 Rh8 26. Qxc6+ (26. Qxf4 $2 Qh1#) 26... Bb7 $19) 25... Rxf4 {[%emt 0:08:35]} 26. Re4 {[%emt 0:00:07]} (26. Qxc6+ $16 Bb7 27. Qh6) 26... Bb7 {[%emt 0:01:33] The position is equal.} 27. Rxf4 {[%emt 0:13:17]} exf4 {[%emt 0:00:01]} 28. f3 {[%emt 0:05:37]} Qg7 {[%emt 0:03:41][%csl LRa1,LRg5]} 29. c3 $1 {[%emt 0:02:27]} Qxg5 {[%emt 0:03:21] ( -> ...Rg8)} 30. Qd4 {[%emt 0:00:43] Strongly threatening Nd2.} ({Avoid the trap} 30. Nd2 $2 Rg8 31. g4 fxg3 $19) 30... Rg8 {[%emt 0:11:15]} 31. Qf2 {[%emt 0:00:22] Hoping for Nd2.} Bc8 $1 {[%emt 0:00:12] Threatens to win with ...Bh3.} 32. Nd2 {[%emt 0:11:49] Black must now prevent Kf1.} Bh3 {[%emt 0:00:00][%cal Rh3g2]} 33. Ne4 {[%emt 0:00:02]} Qh6 {[%emt 0:02:17]} 34. Re1 {[%emt 0:01:48][%cal Ba1e1,Be1h1,Bh1h5,Bh5f5,Bf5f4,Bf4c4][%mdl 32]} Bxg2 {[%emt 0:00:23]} 35. Qxg2 {[%emt 0:00:07]} Rxg2+ {[%emt 0:00:06]} 36. Kxg2 $11 {[%emt 0:00:02][%mdl 4096] Endgame. KQ-KRN} a5 {[%emt 0:00:22]} 37. Rh1 {[%emt 0:00:47]} Qg7+ {[%emt 0:00:36]} 38. Kf2 {[%emt 0:00:02]} Qe7 {[%emt 0:00:17]} 39. Ke2 {[%emt 0:06:28]} Ka7 {[%emt 0:01:45]} 40. Rh5 {[%emt 0:00:19]} Qa3 {[%emt 0:00:23]} 41. Rf5 {[%emt 0:00:37]} Qxa2+ {[%emt 0:00:34]} 42. Nd2 {[%emt 0:00:04]} Qa1 {[%emt 0:00:26]} 43. Rxf4 {[%emt 0:00:07]} Qxc3 {[%emt 0:00:03]} 44. Rc4 {[%emt 0:00:39]} Qe5+ {[%emt 0:00:07]} 45. Re4 {[%emt 0:00:04]} Qg7 {[%emt 0:00:05]} 46. Rg4 {[%emt 0:00:09]} Qh8 {[%emt 0:00:09]} 47. Re4 {[%emt 0:00:15]} Kb6 {[%emt 0:00:05]} 48. Rg4 {[%emt 0:00:14]} Kb5 {[%emt 0:00:06]} 49. Re4 {[%emt 0:00:22]} c5 {[%emt 0:00:19]} 50. Rg4 {[%emt 0:00:12]} Qh1 {[%emt 0:00:08]} 51. Rc4 {[%emt 0:00:40]} Qg1 {[%emt 0:00:17]} 52. Rg4 {[%emt 0:00:08]} Qh1 {[%emt 0:00:11]} 53. Rc4 {[%emt 0:00:04]} Qg1 {[%emt 0:12:39] Weighted Error Value: White=0.07 (flawless) /Black=0.03 (flawless) .  Mistake:       	White=1     	Black=1      OK:         	White=15    	Black=18     Best:        	White=4     	Black=4      Strong:       	White=5     	Black=2      Brilliant:      	White=1     	---} 1/2-1/2

[Event "3rd President Cup-A 2024"]
[Site "Tashkent"]
[Date "2024.11.25"]
[Round "5.2"]
[White "Sindarov, Javokhir"]
[Black "Zemlyanskii, Ivan"]
[Result "1-0"]
[ECO "C83"]
[WhiteElo "2682"]
[BlackElo "2543"]
[Annotator "TA"]
[PlyCount "67"]
[EventDate "2024.11.22"]
[EventType "swiss"]
[EventCountry "UZB"]
[SourceTitle "playchess.com"]
[Source "ChessBase"]
[SourceQuality "1"]
[TimeControl "5400+30"]

{[%evp 18,67,48,6,19,10,12,20,12,8,22,17,22,7,37,30,53,50,58,43,43,47,85,70,65,43,79,81,145,130,144,143,181,120,231,244,238,237,184,187,490,472,5606,548,922,905,928,904,1086,706,4794,1898]} 1. e4 {[%emt 0:00:51]} e5 {[%emt 0:00:10]} 2. Nf3 {[%emt 0:00:08]} Nc6 {[%emt 0:00:05]} 3. Bb5 {[%emt 0:00:08][%cal Bf1b5,Bb5a4,Ba4b3,Bb3c2][%mdl 32]} a6 {[%emt 0:00:08]} 4. Ba4 {[%emt 0:00:06]} Nf6 {[%emt 0:00:04]} 5. O-O {[%emt 0:00:12]} Nxe4 {[%emt 0:00:11]} 6. d4 {[%emt 0:00:07]} b5 {[%emt 0:00:04]} 7. Bb3 {[%emt 0:00:11]} d5 {[%emt 0:00:04]} 8. dxe5 {[%emt 0:00:47]} Be6 {[%emt 0:00:04]} 9. c3 {[%emt 0:00:55]} Be7 {[%emt 0:00:05]} 10. Bf4 {[%emt 0:02:10]} Nc5 {[%emt 0:01:04]} 11. Bc2 {[%emt 0:00:48]} Bg4 {[%emt 0:05:03][%cal Od5d4]} 12. Nbd2 {[%emt 0:00:48]} Bh5 {[%emt 0:11:23] The position is equal.} 13. Bg3 {[%emt 0:03:42]} O-O {[%emt 0:01:02]} 14. Qb1 {[%emt 0:05:09]} Bg6 {[%emt 0:00:34]} 15. Rd1 {[%emt 0:01:16]} Bxc2 {[%emt 0:17:47]} 16. Qxc2 {[%emt 0:00:25]} f5 {[%emt 0:00:08] Strongly threatening ...f4.} 17. exf6 {[%emt 0:05:03]} Bxf6 {[%emt 0:00:23]} 18. b4 {[%emt 0:19:19]} Na4 {[%emt 0:16:26] [#]} 19. Ne4 {[%emt 0:00:23]} Be7 {[%emt 0:01:22]} (19... Qd7 20. Nxf6+) 20. a3 {[%emt 0:00:40][%cal Oc3c4]} Nb6 {[%emt 0:01:37]} 21. Nc5 {[%emt 0:00:13] Wards off Qd7} Qc8 {[%emt 0:07:17] Against Ne6} 22. Qd3 {[%emt 0:17:59] White has more active pieces.} Rf5 {[%emt 0:09:31]} ({Black should try} 22... Rf6) 23. Re1 {[%emt 0:05:37][%cal Bd1e1,Be1e6,Be6e5][%mdl 32] aiming for Re6.} Bxc5 {[%emt 0:02:42]} 24. bxc5 {[%emt 0:00:06]} Nc4 {[%emt 0:00:52] [#]} 25. Bxc7 {[%emt 0:01:48]} Rxf3 {[%emt 0:04:56]} (25... Qd7 $16 {keeps fighting.} 26. Nd4 Rff8) 26. Qxf3 $18 {[%emt 0:00:42]} Qxc7 {[%emt 0:00:04]} 27. Qxd5+ {[%emt 0:00:09]} Kh8 {[%emt 0:00:40]} 28. Re6 $40 {[%emt 0:00:09][%mdl 128] White wants a kill.} Rc8 $2 {[%emt 0:03:26]} (28... N4a5 {is tougher.} 29. Qe4 g6) 29. Rae1 {[%emt 0:00:55] White wants to mate with Re8+. White is clearly winning.} g6 {[%emt 0:00:15]} (29... N6e5 $142 30. f4 (30. R6xe5 Nxe5 31. Rxe5 h6 $18) (30. Rxa6 Qb8 $18) 30... Rf8) 30. h4 {[%emt 0:02:35]} (30. Rxc6 $142 Qxc6 31. Qd4+ Ne5 32. Rxe5 (32. Qxe5+ Kg8 $18)) 30... N6e5 {[%emt 0:05:41]} 31. R1xe5 {[%emt 0:01:24]} Nxe5 {[%emt 0:00:06]} 32. Rxe5 {[%emt 0:00:40]} Rd8 {[%emt 0:02:43]} 33. Qe4 {[%emt 0:00:26]} Qf7 {[%emt 0:00:55]} 34. c6 {[%emt 0:00:54] Weighted Error Value: White=0.30/Black=0.48.  Mistake:       	White=2     	Black=4      Inaccurate:     	---       	Black=4      OK:         	White=10    	Black=3      Best:        	---       	Black=2      Brilliant:      	White=1     	---} (34. Re7 $142 Qf6 35. c6) 1-0

[Event "3rd President Cup-A 2024"]
[Site "Tashkent"]
[Date "2024.11.25"]
[Round "5.3"]
[White "Karthikeyan, Murali"]
[Black "Nihal Sarin"]
[Result "1/2-1/2"]
[ECO "D02"]
[WhiteElo "2625"]
[BlackElo "2676"]
[Annotator "TA"]
[PlyCount "80"]
[EventDate "2024.11.22"]
[EventType "swiss"]
[EventCountry "UZB"]
[SourceTitle "playchess.com"]
[Source "ChessBase"]
[SourceQuality "1"]
[TimeControl "5400+30"]

{[%evp 9,80,4,15,12,14,17,14,12,13,16,14,3,13,4,5,6,18,0,0,0,0,-14,17,0,0,0,0,0,0,-8,-10,-11,-8,-12,0,0,0,0,0,0,0,0,0,-34,0,0,0,-5,47,0,4,0,5,0,45,35,44,49,52,37,12,13,8,0,0,0,0,0,8,0,5,0,0]} 1. d4 {[%emt 0:00:39]} d5 {[%emt 0:00:26]} 2. Nf3 {[%emt 0:00:11]} Nf6 {[%emt 0:00:14]} 3. Bf4 {[%emt 0:00:06]} c5 {[%emt 0:02:22]} 4. e3 {[%emt 0:00:07]} e6 {[%emt 0:01:02]} 5. Nbd2 {[%emt 0:00:58]} Qb6 {[%emt 0:02:16]} 6. Rb1 {[%emt 0:00:41]} cxd4 {[%emt 0:03:20]} 7. exd4 {[%emt 0:00:12]} Bd7 {[%emt 0:00:04]} 8. c3 {[%emt 0:01:17]} Bb5 {[%emt 0:01:24]} 9. Bxb5+ {[%emt 0:04:57]} Qxb5 {[%emt 0:00:34]} 10. a4 {[%emt 0:00:13]} (10. Nb3 {seems wilder.} Ne4 11. Ne5 Be7 12. Qe2) 10... Qa6 {[%emt 0:00:11]} 11. Qb3 {[%emt 0:00:25]} Nbd7 {[%emt 0:06:20]} 12. Qb5 {[%emt 0:03:14]} Qb6 {[%emt 0:00:05]} 13. Ke2 {[%emt 0:08:31]} Nh5 {[%emt 0:08:57]} 14. Be5 {[%emt 0:04:13]} f6 {[%emt 0:03:59]} 15. Bg3 {[%emt 0:01:00]} (15. Qxb6 {simplifies} axb6 16. Bc7 Rc8 17. Bg3) 15... Bd6 {[%emt 0:12:09]} 16. Qxb6 {[%emt 0:28:40]} Nxg3+ {[%emt 0:00:09]} 17. hxg3 {[%emt 0:00:04]} Nxb6 {[%emt 0:09:23]} 18. a5 {[%emt 0:03:17]} Nc8 {[%emt 0:00:20]} 19. b4 {[%emt 0:04:30]} Ne7 {[%emt 0:16:03]} 20. c4 {[%emt 0:03:58]} dxc4 {[%emt 0:00:31]} 21. Nxc4 {[%emt 0:00:02]} Kd7 {[%emt 0:00:55]} 22. b5 {[%emt 0:02:39]} Nd5 {[%emt 0:04:49]} 23. Kd3 {[%emt 0:01:52] Wards off Nc3} h6 {[%emt 0:05:25]} 24. Nfd2 {[%emt 0:04:29]} Rhc8 {[%emt 0:01:09]} 25. Rhc1 {[%emt 0:00:27]} Be7 {[%emt 0:01:05]} 26. Rb3 {[%emt 0:06:55]} b6 {[%emt 0:11:53]} 27. Ra1 {[%emt 0:01:18]} Rab8 {[%emt 0:00:09]} 28. Ne3 {[%emt 0:09:40]} Nxe3 {[%emt 0:04:34]} (28... Nb4+ $11 29. Ke2 Ke8) 29. fxe3 {[%emt 0:00:51]} (29. axb6 $5 axb6 (29... Nxg2 $2 30. bxa7 Rb7 31. Ke2 $18) 30. fxe3 $16) 29... bxa5 {[%emt 0:00:57]} 30. Rxa5 {[%emt 0:00:18]} Rb7 {[%emt 0:00:01]} 31. g4 {[%emt 0:04:54]} g6 {[%emt 0:01:27]} 32. Rb1 {[%emt 0:02:12]} Rcb8 {[%emt 0:01:04]} 33. Rh1 {[%emt 0:01:36]} Bf8 {[%emt 0:01:57]} 34. Ne4 {[%emt 0:01:37]} (34. g5 $5 fxg5 (34... Rxb5 $2 {is the wrong capture.} 35. Rxa7+ R8b7 36. Rxb7+ Rxb7 37. gxh6 $18) 35. Nc4 Rxb5 36. Rxa7+ R8b7 37. Ra6 $16) 34... f5 {[%emt 0:00:06]} 35. gxf5 {[%emt 0:00:11] The position is equal.} gxf5 {[%emt 0:00:26]} 36. Nc5+ {[%emt 0:01:21]} Bxc5 {[%emt 0:00:05]} 37. dxc5 {[%emt 0:00:03] [#] aiming for c6+.} Rxb5 {[%emt 0:00:06]} 38. Rxa7+ {[%emt 0:00:40]} R8b7 {[%emt 0:01:17]} 39. Rxb7+ {[%emt 0:00:18]} Rxb7 {[%emt 0:00:01]} 40. Rxh6 {[%emt 0:00:31] Black must now prevent Rh7+.} Rb3+ {[%emt 0:00:26] Weighted Error Value: White=0.06 (flawless) /Black=0.08 (flawless) .  Mistake:       	---       	Black=1      Inaccurate:     	White=2     	Black=3      OK:         	White=11    	Black=17     Best:        	---       	Black=3} 1/2-1/2

[Event "3rd President Cup-A 2024"]
[Site "Tashkent"]
[Date "2024.11.25"]
[Round "5.4"]
[White "Madaminov, Mukhiddin"]
[Black "Maghsoodloo, Parham"]
[Result "1/2-1/2"]
[ECO "B90"]
[WhiteElo "2501"]
[BlackElo "2712"]
[Annotator "TA"]
[PlyCount "152"]
[EventDate "2024.11.22"]
[EventType "swiss"]
[EventCountry "UZB"]
[SourceTitle "playchess.com"]
[Source "ChessBase"]
[SourceQuality "1"]
[TimeControl "5400+30"]

{[%evp 11,152,6,25,15,14,7,14,11,31,25,23,13,35,14,13,18,8,0,26,0,12,6,0,35,8,6,20,-7,0,-38,-39,-42,-43,-39,-45,-46,-32,-26,-11,-56,0,0,0,0,0,0,0,-24,0,-66,-15,-51,-34,-61,-18,-20,0,0,0,-43,-5,-17,-6,-17,-18,-74,-66,-93,0,0,0,0,0,0,0,0,0,0,0,-75,-79,-92,-49,-35,-24,-33,-33,-82,0,0,0,-35,-31,-44,-38,-47,0,-50,-35,-73,-66,-60,0,-35,-21,-19,0,0,0,-22,-22,-154,-138,-270,0,-150,0,-302,-87,-119,-95,-449,-335,-780,0,0,0,0,0,0,8,16,56,0,0,0,0,0,0,0,0,0,0]} 1. e4 {[%emt 0:00:32]} c5 {[%emt 0:00:05]} 2. Nf3 {[%emt 0:00:54]} d6 {[%emt 0:00:07]} 3. d4 {[%emt 0:00:40]} cxd4 {[%emt 0:00:06]} 4. Nxd4 {[%emt 0:00:08]} Nf6 {[%emt 0:00:02]} 5. Nc3 {[%emt 0:00:13]} a6 {[%emt 0:00:03]} 6. Bd3 {[%emt 0:01:18]} g6 {[%emt 0:01:25]} 7. f3 {[%emt 0:00:44]} Nc6 {[%emt 0:05:22]} 8. Be3 {[%emt 0:02:52]} Qb6 {[%emt 0:00:11][%cal Ob6b2] [#]} 9. a3 $1 {[%emt 0:00:23]} e5 {[%emt 0:00:07] [#]} (9... Bd7 10. Bc4) 10. Nf5 {[%emt 0:00:08]} Qd8 {[%emt 0:00:04]} 11. Ng3 {[%emt 0:00:07]} Be6 {[%emt 0:01:58]} 12. h4 {[%emt 0:00:25]} h5 {[%emt 0:00:15]} 13. Qd2 {[%emt 0:01:58]} Rc8 {[%emt 0:04:20]} 14. O-O-O {[%emt 0:09:15]} b5 {[%emt 0:02:02]} 15. Kb1 {[%emt 0:11:20]} Bg7 {[%emt 0:31:17] [#]} 16. Nd5 $1 {[%emt 0:07:24]} Bxd5 {[%emt 0:09:33]} 17. exd5 {[%emt 0:00:16]} Nxd5 {[%emt 0:00:43]} 18. Bg5 {[%emt 0:02:11]} Nde7 $1 {[%emt 0:00:18]} 19. Be4 {[%emt 0:08:27]} f6 {[%emt 0:03:59]} 20. Be3 {[%emt 0:01:54][%cal Oe4d5] A strong pair of Bishops.} (20. Qd3 $5 fxg5 21. hxg5 $15 (21. Bxg6+ Kf8 $15)) 20... f5 {[%emt 0:01:39]} 21. Bxc6+ {[%emt 0:01:41]} Rxc6 {[%emt 0:00:07]} 22. Bg5 {[%emt 0:00:06]} d5 {[%emt 0:07:14]} 23. Rhe1 {[%emt 0:08:14]} Qd7 {[%emt 0:11:28]} 24. Ne2 {[%emt 0:10:17][%cal Oe2f4]} Rd6 {[%emt 0:05:34]} 25. Nf4 $1 {[%emt 0:05:39]} Kf7 $1 {[%emt 0:00:06]} 26. Nd3 $1 {[%emt 0:05:50][%cal Oe1e5] Strongly threatening Rxe5!} Nc6 {[%emt 0:00:16]} 27. g4 {[%emt 0:05:17]} Re8 {[%emt 0:06:02]} (27... fxg4 28. Nc5 Qc7 29. fxg4 $16) 28. gxh5 {[%emt 0:02:25]} gxh5 {[%emt 0:00:01]} 29. Qh2 {[%emt 0:00:21]} a5 {[%emt 0:03:57]} 30. Qh3 {[%emt 0:07:20]} (30. Rg1 $11) 30... Qc8 {[%emt 0:01:41]} (30... b4 $15 31. a4 (31. Nc5 Qc8 $17) 31... Kg8) 31. Qg2 {[%emt 0:00:32]} b4 {[%emt 0:01:40]} 32. a4 {[%emt 0:00:29]} Rg6 {[%emt 0:01:20]} 33. Qf2 {[%emt 0:01:06]} Nd4 {[%emt 0:01:11]} 34. Be3 {[%emt 0:01:29]} Nc6 {[%emt 0:00:18]} 35. Bg5 {[%emt 0:00:07]} d4 {[%emt 0:01:36]} 36. Qe2 {[%emt 0:00:09]} Qe6 {[%emt 0:00:38]} 37. b3 {[%emt 0:02:13]} (37. Qh2 {feels hotter.} Qd7 38. Rg1 f4 39. b3) 37... Kg8 {[%emt 0:01:00]} 38. Qf1 {[%emt 0:00:57]} (38. Rd2 $11 {keeps the balance.}) 38... Qf7 $17 {[%emt 0:00:05]} 39. Qh3 {[%emt 0:00:40]} e4 {[%emt 0:00:30]} ({Black should try} 39... Nb8 $17 40. Qh2 Nd7) 40. fxe4 $1 $11 {[%emt 0:02:02]} fxe4 {[%emt 0:00:04]} 41. Rf1 $1 {[%emt 0:00:10]} Qe6 {[%emt 0:01:31]} 42. Qxe6+ {[%emt 0:00:10]} Rgxe6 {[%emt 0:00:05]} 43. Nf4 {[%emt 0:00:07][%csl LRe6,LRh5]} Rd6 {[%emt 0:00:57][%cal Od4d3]} 44. Nxh5 {[%emt 0:00:09]} Bh8 {[%emt 0:00:41]} 45. Rfe1 {[%emt 0:03:37]} (45. Rg1 $11 Kh7 46. Rdf1) 45... e3 $1 $17 {[%emt 0:00:47]} 46. Nf4 {[%emt 0:00:34]} (46. Bxe3 Rxe3 47. Rxe3 dxe3 $19) 46... Ne5 {[%emt 0:00:25]} 47. Rg1 {[%emt 0:00:39] Black must now prevent Be7+.} (47. Rxe3 dxe3 48. Rxd6 Nf7 $19) 47... Kh7 {[%emt 0:00:20][%cal Od4d3] aiming for ...d3!} 48. Rg3 $1 {[%emt 0:00:29]} Nc6 {[%emt 0:00:39]} 49. Ne2 {[%emt 0:00:07]} (49. Nd3 $1 $15) 49... Be5 {[%emt 0:00:36]} ({Better is} 49... Rf8 $1 $17 50. Nc1 (50. Bxe3 $2 Re6 $19) 50... Re6) 50. Rf3 $1 $11 {[%emt 0:00:06]} Rg8 {[%emt 0:00:15]} 51. Rg1 {[%emt 0:00:19]} Rg7 {[%emt 0:00:05]} 52. Rd1 {[%emt 0:00:14]} Rdd7 {[%emt 0:00:30]} 53. Rdf1 {[%emt 0:00:32]} Rd6 {[%emt 0:00:25]} 54. Rd1 {[%emt 0:00:06]} Rgd7 {[%emt 0:00:09]} 55. Nc1 {[%emt 0:00:19]} Bg7 {[%emt 0:00:06]} 56. Rf5 {[%emt 0:00:46]} Bh6 {[%emt 0:01:31]} (56... Ne5 $15) 57. Rc5 {[%emt 0:01:06]} Rf7 {[%emt 0:00:29]} 58. Re1 {[%emt 0:00:28]} Re6 {[%emt 0:00:23]} 59. Nd3 {[%emt 0:00:25] Prevents Ne5.} Bf8 {[%emt 0:00:28]} 60. Rb5 {[%emt 0:01:02]} Bd6 {[%emt 0:00:06]} 61. Rb6 {[%emt 0:01:01]} (61. Ka2 $1 $11 {remains equal.}) 61... Bg3 $36 {[%emt 0:00:38][%mdl 2048] Black is really pushing.} 62. Rg1 {[%emt 0:00:14]} (62. Re2 $17) 62... Bh2 $2 {[%emt 0:00:48]} ({Black should play} 62... e2 $19 {Threatens to win with ...Rf1+.} 63. Kb2 (63. Rxg3 $2 e1=Q+ 64. Nxe1 Rxe1+ 65. Kb2 Rff1 $19) 63... Rf1 (63... e1=R 64. Rxg3 Rh1 65. Bc1 $11) (63... e1=Q $2 64. Nxe1 Bxe1 65. Kb1 $19) (63... e1=B 64. Kb1 $17) 64. Rb7+ (64. Rxg3 $2 e1=Q $19) 64... Kh8 65. Rxg3 e1=Q 66. Bf6+ (66. Nxe1 $2 Rexe1 $19) 66... Rfxf6 67. Nxe1 Rxe1) 63. Rh1 {[%emt 0:00:06]} (63. Rg2 $11 Bb8 64. Rb5) 63... Bg3 $2 {[%emt 0:01:01]} (63... e2 $17 {And now ...Rf1+ would win.} 64. Rxc6 (64. Rxh2 $2 e1=Q+ 65. Nxe1 Rxe1+ 66. Kb2 Rff1 $19) 64... Rf1+ (64... Rxc6 65. Rxh2 Rf1+ 66. Kb2 $17) 65. Kb2 Bd6 (65... Rxc6 $2 66. Rxh2 e1=Q 67. Nxe1 $19) 66. Rxd6 Rxd6) 64. Rg1 $19 {[%emt 0:00:03]} Bc7 $2 {[%emt 0:00:28]} (64... e2 $19 {has better winning chances. ...Rf1+ would now be deadly.} 65. Rxg3 e1=Q+ 66. Nxe1 Rxe1+ 67. Ka2 Rff1 68. Rb7+ (68. Rxc6 $2 Ra1+ 69. Kb2 Rfb1#) 68... Kh8 69. Bf6+ Rxf6) 65. Rb7 $17 {[%emt 0:00:13] [#]} Ne5 $1 {[%emt 0:00:42]} 66. Nxe5 $4 {[%emt 0:01:46][%mdl 8192]} (66. Ne1 $17) 66... Rxe5 $19 {[%emt 0:00:01]} 67. Bf4 $2 {[%emt 0:00:10] [#]} (67. Re1) 67... e2 $2 {[%emt 0:00:53]} 68. Re1 $11 {[%emt 0:00:52]} Kg6 {[%emt 0:00:35]} 69. Rxc7 {[%emt 0:00:30]} (69. Bxe5 $2 {is the wrong capture.} Rf1 70. h5+ (70. Bxc7 $2 Rxe1+ 71. Ka2 Ra1+ 72. Kxa1 e1=Q+ 73. Ka2 Qc3 $19) 70... Kg5 71. Bxc7 (71. Rxc7 $2 Rxe1+ 72. Kb2 Rb1+ 73. Kxb1 e1=Q+ 74. Ka2 Qxe5 $19) 71... Rxe1+ 72. Kb2 d3 (72... Kxh5 $2 73. Rb5+ Kg6 74. Re5 $18) (72... Rb1+ $2 73. Kxb1 e1=Q+ 74. Ka2 $19) 73. Rb5+ (73. Bxa5 Rb1+ 74. Kxb1 e1=Q+ 75. Kb2 Qc3+ 76. Ka2 Qxc2+ 77. Ka1 Qd1+ 78. Kb2 Qe2+ 79. Kb1 Qf1+ 80. Kb2 Qg2+ 81. Kb1 Qxb7 82. Bd8+ Kf5 83. Kc1 Qc6+ 84. Kd2 Qc2+ 85. Ke3 d2 86. Kf3 d1=Q+ 87. Kg3 Qg4#) 73... Kf6 74. Bd8+ (74. Bxa5 Rb1+ 75. Kxb1 e1=Q+ 76. Ka2 dxc2 77. Rb6+ Ke5 78. Rb5+ Kd4 79. Rxb4+ Qxb4 80. Bxb4 c1=Q 81. Ba3 Qc8 82. Bb2+ Kd3 83. Kb1 Kd2 84. h6 Qf5+ 85. Ka2 Kc2 86. Ka3 Qc5+ 87. Ka2 Qe3 88. Bh8 Qxb3+ 89. Ka1 Qxa4#) 74... Ke6 75. cxd3 (75. Bxa5 Rb1+ 76. Kxb1 e1=Q+ 77. Ka2 dxc2 78. Rb6+ Ke5 79. Rb5+ Kd4 80. Rxb4+ Qxb4 81. Bxb4 c1=Q 82. Ba3 Qg1 83. Bb4 Kd3 84. Kb2 Qd4+ 85. Kb1 Qxb4 86. Kb2 Qd2+ 87. Ka3 Kc3 88. a5 Qb2+ 89. Ka4 Qxb3#) 75... Rb1+ 76. Kxb1 e1=Q+ (76... e1=B 77. Bxa5 Bh4 78. Bxb4 Bf6 79. h6 Kf7 80. h7 Kg7 81. Rb7+ Kh6 82. a5) 77. Kc2 Qc3+ 78. Kd1 Qxd3+ (78... Qxb3+ $2 79. Kd2 $19) 79. Ke1 Qxd8 $19) 69... Rxf4 {[%emt 0:00:11][%mdl 4096] Endgame. KRR-KRR} 70. Kc1 {[%emt 0:00:05]} Rf3 {[%emt 0:00:49]} 71. Rd7 {[%emt 0:00:33]} Rc5 {[%emt 0:00:29] ...d3 is the strong threat.} 72. Rxd4 {[%emt 0:00:55]} (72. Rxe2 $14 Rxb3 73. Rd6+ (73. Rxd4 Ra3 $14) 73... Kf7 74. Rxd4) 72... Rf1 {[%emt 0:00:12] The position is equal.} ({Much worse is} 72... Rxb3 $6 73. Rxe2 Rh3 74. Kb2 $16) 73. Kd2 {[%emt 0:00:29]} Rxc2+ $1 {[%emt 0:00:41]} 74. Kxc2 {[%emt 0:00:01]} Rxe1 {[%emt 0:00:01]} 75. Re4 {[%emt 0:00:12]} Kf5 {[%emt 0:01:03]} 76. Re8 {[%emt 0:00:14]} Kg4 {[%emt 0:00:27] Weighted Error Value: White=0.13 (very precise) /Black=0.13 (very precise) .  Loses game:     	White=1     	---        Missed win:     	---       	Black=3      Mistake:       	White=9     	Black=5      Inaccurate:     	White=8     	Black=5      OK:         	White=28    	Black=21     Best:        	White=2     	Black=5      Strong:       	White=6     	Black=5} 1/2-1/2